fUST/lending_fUST_20240609
["ID","MTS","AMOUNT","RATE_DAILY","PERIOD"]
[328843076,1717866646067,-221.739,0.00016438,2]
[328843077,1717866646077,-700.03,0.00016438,2]
[328843078,1717866646086,-500.0,0.00016438,2]
[328843079,1717866646096,-500.0,0.00016438,2]
[328843080,1717866646106,-556.56676684,0.00016438,2]
[328843081,1717866646116,-505.14865968,0.00016438,2]
[328843082,1717866646126,-651.7,0.00016438,2]
[328843083,1717866646136,-500.0,0.00016438,2]
[328843084,1717866646145,-500.0,0.00016438,2]
[328843085,1717866646155,-500.0,0.00016438,2]
[328843086,1717866646165,-573.87921281,0.00016438,2]
[328843087,1717866646175,-500.0,0.00016438,2]
[328843088,1717866646186,-508.08141572,0.00016438,2]
[328843089,1717866646195,-500.0,0.00016438,2]
[328843090,1717866646205,-500.0,0.00016438,2]
[328843091,1717866646214,-500.0,0.00016438,2]
[328843092,1717866646224,-1489.7,0.00016438,2]
[328843093,1717866646233,-500.0,0.00016438,2]
[328843094,1717866646243,-500.0,0.00016438,2]
[328843095,1717866646252,-500.0,0.00016438,2]
[328843096,1717866646262,-500.0,0.00016438,2]
[328843097,1717866646271,-502.32965012,0.00016438,2]
[328843098,1717866646280,-500.0,0.00016438,2]
[328843099,1717866646289,-510.85743427,0.00016438,2]
[328843100,1717866646299,-500.0,0.00016438,2]
[328843101,1717866646308,-500.0,0.00016438,2]
[328843102,1717866646319,-500.0,0.00016438,2]
[328843103,1717866646328,-1078.89,0.00016438,2]
[328843104,1717866646338,-500.0,0.00016438,2]
[328843105,1717866646348,-500.0,0.00016438,2]
[328843106,1717866646358,-500.0,0.00016438,2]
[328843107,1717866646367,-485.74249856,0.00016438,2]
[328843108,1717866646377,-500.0,0.00016438,2]
[328843109,1717866646387,-500.0,0.00016438,2]
[328843110,1717866646396,-601.79,0.00016438,2]
[328843111,1717866646406,-500.0,0.00016438,2]
[328843112,1717866646415,-904.16,0.00016438,2]
[328843113,1717866646425,-577.48,0.00016438,2]
[328843114,1717866646435,-500.0,0.00016438,2]
[328843115,1717866646445,-151.0,0.00016438,2]
[328843116,1717866646455,-151.0,0.00016438,2]
[328843117,1717866646470,-500.0,0.00016438,2]
[328843118,1717866646480,-500.0,0.00016438,2]
[328843119,1717866646489,-500.0,0.00016438,2]
[328843120,1717866646498,-594.44057872,0.00016438,2]
[328843121,1717866646509,-151.0,0.00016438,2]
[328843122,1717866646519,-151.0,0.00016438,2]
[328843123,1717866646528,-151.0,0.00016438,2]
[328843124,1717866646540,-151.0,0.00016438,2]
[328843125,1717866646550,-500.0,0.00016438,2]
[328843126,1717866646561,-151.0,0.00016438,2]
[328843127,1717866646571,-1977.24,0.00016438,2]
[328843128,1717866646581,-500.0,0.00016438,2]
[328843129,1717866646591,-151.0,0.00016438,2]
[328843130,1717866646602,-500.0,0.00016438,2]
[328843131,1717866646611,-500.0,0.00016438,2]
[328843132,1717866646621,-500.0,0.00016438,2]
[328843133,1717866646631,-500.0,0.00016438,2]
[328843134,1717866646641,-500.0,0.00016438,2]
[328843135,1717866646651,-500.0,0.00016438,2]
[328843136,1717866646662,-500.0,0.00016438,2]
[328843137,1717866646672,-500.0,0.00016438,2]
[328843138,1717866646683,-500.0,0.00016438,2]
[328843139,1717866646692,-500.0,0.00016438,2]
[328843140,1717866646703,-500.0,0.00016438,2]
[328843142,1717866646713,-503.39412484,0.00016438,2]
[328843144,1717866646723,-771.04,0.00016438,2]
[328843145,1717866646733,-164.9132344,0.00016465,2]
[328843146,1717866646743,-275.55259809,0.000165,2]
[328843147,1717866646753,-150.0,0.0001653,2]
[328843148,1717866646763,-164.9132344,0.00016593,2]
[328843149,1717866646772,-557.13,0.0001671,2]
[328843150,1717866646782,-500.0,0.0001671,2]
[328843151,1717866646793,-353.52069219,0.0001671,2]
[328843152,1717866646803,-500.0,0.00016711,2]
[328843153,1717866646813,-500.0,0.00016711,2]
[328843154,1717866646824,-1018.09,0.00016711,2]
[328843155,1717866646833,-1018.09,0.00016711,2]
[328843156,1717866646843,-557.13,0.00016711,2]
[328843157,1717866646852,-365.38481869,0.00016711,2]
[328843158,1717866646868,-191.74518131,0.00016711,2]
[328843159,1717866646877,-500.0,0.00016712,2]
[328843160,1717866646888,-500.0,0.00016712,2]
[328843161,1717866646898,-303.25518469,0.00016712,4]
[328843162,1717866646910,-196.74481531,0.00016712,4]
[328843163,1717866646920,-500.0,0.00016712,2]
[328843164,1717866646931,-500.0,0.00016712,2]
[328843165,1717866646941,-341.99716999,0.00016712,2]
[328843166,1717866646953,-158.00283001,0.00016712,2]
[328843168,1717866646964,-500.0,0.00016712,2]
[328843170,1717866646974,-500.0,0.00016712,2]
[328843172,1717866646983,-506.38,0.00016712,2]
[328843173,1717866646993,-44.20893531,0.00016712,2]
[328843174,1717866647145,-167.40834901,0.00016438,2]
[328843175,1717866647155,-500.0,0.00016712,2]
[328843176,1717866647165,-500.0,0.00016712,2]
[328843177,1717866647175,-500.0,0.00016712,2]
[328843178,1717866647186,-500.0,0.00016712,2]
[328843179,1717866647196,-151.0,0.00016712,2]
[328843180,1717866647207,-500.0,0.00016712,2]
[328843181,1717866647217,-276.76,0.00016712,2]
[328843182,1717866647228,-500.0,0.00016712,2]
[328843183,1717866647238,-500.0,0.00016712,2]
[328843184,1717866647248,-500.0,0.00016712,2]
[328843185,1717866647258,-252.40380881,0.00016712,2]
[328843186,1717866647271,-247.59619119,0.00016712,2]
[328843187,1717866647281,-500.0,0.00016712,2]
[328843188,1717866647290,-500.0,0.00016712,2]
[328843189,1717866647300,-500.0,0.00016712,2]
[328843190,1717866647310,-500.0,0.00016712,2]
[328843191,1717866647322,-500.0,0.00016712,2]
[328843192,1717866647332,-319.53713161,0.00016712,2]
[328843193,1717866647341,-500.0,0.00016712,2]
[328843194,1717866647352,-500.0,0.00016712,2]
[328843195,1717866647362,-500.0,0.00016712,2]
[328843196,1717866647372,-500.0,0.00016712,2]
[328843197,1717866647383,-500.0,0.00016712,2]
[328843198,1717866647393,-500.0,0.00016712,2]
[328843199,1717866647402,-500.3701192,0.00016712,2]
[328843200,1717866647411,-500.0,0.00016712,2]
[328843201,1717866647421,-361.45165176,0.00016712,2]
[328843202,1717866647433,-791.02502001,0.00016712,2]
[328843203,1717866647445,-280.38332823,0.00016712,2]
[328843204,1717866647455,-563.37,0.00016712,2]
[328843205,1717866647470,-500.0,0.00016712,2]
[328843206,1717866647480,-500.0,0.00016712,2]
[328843207,1717866647490,-500.0,0.00016712,2]
[328843208,1717866647500,-500.0,0.00016712,2]
[328843209,1717866647510,-500.0,0.00016712,2]
[328843210,1717866647520,-500.0,0.00016712,2]
[328843211,1717866647530,-385.59000901,0.00016712,2]
[328843212,1717866647542,-500.0,0.00016712,2]
[328843213,1717866647552,-500.0,0.00016712,2]
[328843214,1717866647562,-500.0,0.00016712,2]
[328843215,1717866647572,-500.0,0.00016712,2]
[328843216,1717866647581,-503.51431149,0.00016712,2]
[328843217,1717866647591,-330.43159098,0.00016712,2]
[328843218,1717866647600,-500.0,0.00016712,2]
[328843219,1717866647610,-500.0,0.00016712,2]
[328843220,1717866647620,-500.0,0.00016712,2]
[328843221,1717866647630,-674.4,0.00016712,2]
[328843222,1717866647639,-591.29647482,0.00016712,2]
[328843223,1717866647650,-500.0,0.00016712,2]
[328843224,1717866647661,-500.0,0.00016712,2]
[328843225,1717866647671,-500.0,0.00016712,2]
[328843226,1717866647680,-500.0,0.00016712,2]
[328843227,1717866647690,-500.0,0.00016712,2]
[328843228,1717866647699,-2374.81,0.00016712,2]
[328843229,1717866647709,-75.18814953,0.00016712,2]
[328843230,1717866647722,-424.81185047,0.00016712,2]
[328843231,1717866647732,-500.0,0.00016712,2]
[328843232,1717866647742,-563.72800977,0.00016712,2]
[328843233,1717866647752,-647.89,0.00016712,2]
[328843234,1717866647761,-500.0,0.00016712,2]
[328843235,1717866647772,-940.02,0.00016712,2]
[328843236,1717866647782,-500.0,0.00016712,2]
[328843237,1717866647792,-500.0,0.00016712,2]
[328843238,1717866647895,-500.0,0.00016712,2]
[328843239,1717866647905,-500.0,0.00016712,2]
[328843240,1717866647915,-500.0,0.00016712,2]
[328843242,1717866647925,-500.0,0.00016712,2]
[328843244,1717866647935,-500.0,0.00016712,2]
[328843246,1717866647945,-13485.3,0.00016712,2]
[328843248,1717866647955,-500.0,0.00016712,2]
[328843249,1717866647964,-500.0,0.00016712,2]
[328843251,1717866647974,-1610.87,0.00016712,2]
[328843253,1717866647983,-500.0,0.00016712,2]
[328843255,1717866647993,-710.78,0.00016712,2]
[328843257,1717866648003,-500.0,0.00016712,2]
[328843258,1717866648012,-500.0,0.00016712,2]
[328843259,1717866648023,-500.0,0.00016712,2]
[328843260,1717866648033,-500.0,0.00016712,2]
[328843261,1717866648043,-533.95,0.00016712,2]
[328843262,1717866648053,-500.0,0.00016712,2]
[328843263,1717866648064,-575.69,0.00016712,2]
[328843264,1717866648074,-3055.69,0.00016712,2]
[328843265,1717866648083,-500.0,0.00016712,2]
[328843266,1717866648093,-500.0,0.00016712,2]
[328843267,1717866648102,-500.0,0.00016712,2]
[328843268,1717866648112,-500.0,0.00016712,2]
[328843269,1717866648122,-500.0,0.00016712,2]
[328843270,1717866648132,-801.5,0.00016712,2]
[328843271,1717866648142,-700.03,0.00016712,2]
[328843272,1717866648152,-500.0,0.00016712,2]
[328843273,1717866648162,-500.0,0.00016712,2]
[328843274,1717866648172,-651.7,0.00016712,2]
[328843275,1717866648182,-500.0,0.00016712,2]
[328843276,1717866648192,-1489.7,0.00016712,2]
[328843277,1717866648202,-500.0,0.00016712,2]
[328843278,1717866648212,-500.0,0.00016712,2]
[328843279,1717866648222,-1078.89,0.00016712,2]
[328843280,1717866648232,-500.0,0.00016712,2]
[328843281,1717866648242,-500.0,0.00016712,2]
[328843282,1717866648252,-500.0,0.00016712,2]
[328843283,1717866648262,-601.79,0.00016712,2]
[328843284,1717866648272,-500.0,0.00016712,2]
[328843285,1717866648282,-904.16,0.00016712,2]
[328843286,1717866648292,-577.48,0.00016712,2]
[328843287,1717866648302,-500.0,0.00016712,2]
[328843288,1717866648313,-500.0,0.00016712,2]
[328843289,1717866648323,-500.0,0.00016712,2]
[328843290,1717866648333,-500.0,0.00016712,2]
[328843291,1717866648342,-1977.24,0.00016712,2]
[328843292,1717866648352,-500.0,0.00016712,2]
[328843293,1717866648362,-500.0,0.00016712,2]
[328843294,1717866648373,-500.0,0.00016712,2]
[328843295,1717866648383,-500.0,0.00016712,2]
[328843296,1717866648393,-500.0,0.00016712,2]
[328843297,1717866648403,-771.04,0.00016712,2]
[328843298,1717866648412,-164.9132344,0.0001672,2]
[328843299,1717866648422,-241.773,0.0001682,2]
[328843300,1717866648431,-174.162,0.0001682,2]
[328843301,1717866648441,-150.069,0.0001682,2]
[328843302,1717866648451,-152.693,0.0001682,2]
[328843303,1717866648465,-499.0,0.0001682,2]
[328843304,1717866648475,-150.0,0.0001682,2]
[328843305,1717866648485,-154.9690062,0.00016985,2]
[328843306,1717866648494,-500.0,0.00016985,2]
[328843307,1717866648506,-500.0,0.00016985,2]
[328843308,1717866648516,-1018.09,0.00016985,2]
[328843309,1717866648526,-1018.09,0.00016985,2]
[328843310,1717866648536,-557.13,0.00016985,2]
[328843311,1717866648547,-557.13,0.00016985,2]
[328843312,1717866648558,-476.85694528,0.00016986,2]
[328843313,1717866648574,-500.0,0.00016986,4]
[328843314,1717866648584,-500.0,0.00016986,2]
[328843315,1717866648597,-500.0,0.00016986,2]
[328843316,1717866648607,-500.0,0.00016986,2]
[328843317,1717866648618,-500.0,0.00016986,2]
[328843318,1717866648629,-595.2624765,0.00016986,2]
[328843319,1717866648639,-506.38,0.00016986,2]
[328843320,1717866648649,-500.0,0.00016986,2]
[328843321,1717866648660,-500.0,0.00016986,2]
[328843322,1717866648670,-500.0,0.00016986,2]
[328843323,1717866648680,-500.0,0.00016986,2]
[328843324,1717866648691,-500.0,0.00016986,2]
[328843325,1717866648702,-500.0,0.00016986,2]
[328843326,1717866648713,-500.0,0.00016986,2]
[328843327,1717866648724,-500.0,0.00016986,2]
[328843328,1717866648734,-500.0,0.00016986,2]
[328843329,1717866648745,-500.0,0.00016986,2]
[328843330,1717866648755,-530.28,0.00016986,2]
[328843331,1717866648765,-500.0,0.00016986,2]
[328843332,1717866648775,-500.0,0.00016986,2]
[328843333,1717866648785,-500.0,0.00016986,2]
[328843334,1717866648796,-224.30979489,0.00016986,2]
[328843335,1717866648806,-500.0,0.00016986,2]
[328843336,1717866648820,-500.0,0.00016986,2]
[328843337,1717866648830,-1432.86,0.00016986,2]
[328843338,1717866648840,-449.35934712,0.00016986,2]
[328843339,1717866649066,-114.01065288,0.00016986,2]
[328843340,1717866649076,-500.0,0.00016986,2]
[328843341,1717866649085,-500.0,0.00016986,2]
[328843342,1717866649095,-500.0,0.00016986,2]
[328843343,1717866649105,-417.96691704,0.00016986,2]
[328843344,1717866649114,-179.51943014,0.00016986,2]
[328843345,1717866649124,-500.0,0.00016986,2]
[328843346,1717866649134,-233.79675413,0.00016986,2]
[328843347,1717866649147,-266.20324587,0.00016986,2]
[328843348,1717866649157,-500.0,0.00016986,2]
[328843349,1717866649167,-674.4,0.00016986,2]
[328843350,1717866649177,-500.0,0.00016986,2]
[328843351,1717866649187,-500.0,0.00016986,2]
[328843352,1717866649200,-500.0,0.00016986,2]
[328843353,1717866649210,-500.0,0.00016986,2]
[328843354,1717866649219,-2374.81,0.00016986,2]
[328843355,1717866649230,-500.0,0.00016986,2]
[328843356,1717866649240,-500.0,0.00016986,2]
[328843357,1717866649251,-647.89,0.00016986,2]
[328843358,1717866649261,-500.0,0.00016986,2]
[328843359,1717866649272,-940.02,0.00016986,2]
[328843360,1717866649282,-500.0,0.00016986,2]
[328843361,1717866649292,-500.0,0.00016986,2]
[328843362,1717866649302,-500.0,0.00016986,2]
[328843363,1717866649312,-500.0,0.00016986,2]
[328843364,1717866649323,-500.0,0.00016986,2]
[328843365,1717866649333,-500.0,0.00016986,2]
[328843366,1717866649343,-13485.3,0.00016986,2]
[328843367,1717866649353,-500.0,0.00016986,2]
[328843368,1717866649362,-383.45358854,0.00016986,2]
[328843369,1717866649372,-1610.87,0.00016986,2]
[328843370,1717866649382,-500.0,0.00016986,2]
[328843371,1717866649391,-710.78,0.00016986,2]
[328843372,1717866649400,-500.0,0.00016986,2]
[328843373,1717866649410,-500.0,0.00016986,2]
[328843374,1717866649420,-500.0,0.00016986,2]
[328843375,1717866649429,-500.0,0.00016986,2]
[328843376,1717866649439,-533.95,0.00016986,2]
[328843378,1717866649448,-575.69,0.00016986,2]
[328843379,1717866649460,-3055.69,0.00016986,2]
[328843380,1717866649472,-500.0,0.00016986,2]
[328843381,1717866649482,-500.0,0.00016986,2]
[328843382,1717866649492,-500.0,0.00016986,2]
[328843383,1717866649503,-500.0,0.00016986,2]
[328843384,1717866649512,-801.5,0.00016986,2]
[328843385,1717866649522,-700.03,0.00016986,2]
[328843386,1717866649531,-500.0,0.00016986,2]
[328843387,1717866649543,-651.7,0.00016986,2]
[328843388,1717866649553,-500.0,0.00016986,2]
[328843389,1717866649565,-1489.7,0.00016986,2]
[328843390,1717866649575,-500.0,0.00016986,2]
[328843391,1717866649585,-1078.89,0.00016986,2]
[328843392,1717866649594,-500.0,0.00016986,2]
[328843393,1717866649605,-500.0,0.00016986,2]
[328843394,1717866649615,-500.0,0.00016986,2]
[328843395,1717866649624,-601.79,0.00016986,2]
[328843396,1717866649635,-904.16,0.00016986,2]
[328843397,1717866649644,-577.48,0.00016986,2]
[328843398,1717866649655,-500.0,0.00016986,2]
[328843399,1717866649666,-500.0,0.00016986,2]
[328843400,1717866649677,-500.0,0.00016986,2]
[328843401,1717866649687,-1977.24,0.00016986,2]
[328843402,1717866649698,-500.0,0.00016986,2]
[328843403,1717866649708,-500.0,0.00016986,2]
[328843404,1717866649718,-500.0,0.00016986,2]
[328843405,1717866649729,-500.0,0.00016986,2]
[328843406,1717866649740,-500.0,0.00016986,2]
[328843407,1717866649752,-771.04,0.00016986,2]
[328843408,1717866649762,-1132.12920538,0.0001702,7]
[328843409,1717866649773,-500.0,0.00017259,2]
[328843410,1717866649784,-1018.09,0.00017259,2]
[328843411,1717866649795,-1018.09,0.00017259,2]
[328843412,1717866649807,-557.13,0.00017259,2]
[328843413,1717866649819,-625.4275282,0.0001726,4]
[328843414,1717866649829,-500.0,0.0001726,2]
[328843415,1717866649839,-500.0,0.0001726,2]
[328843416,1717866649850,-500.0,0.0001726,2]
[328843417,1717866649860,-500.0,0.0001726,2]
[328843418,1717866649870,-506.38,0.0001726,2]
[328843419,1717866649881,-500.0,0.0001726,2]
[328843420,1717866649891,-500.0,0.0001726,2]
[328843421,1717866649901,-500.0,0.0001726,2]
[328843422,1717866649911,-500.0,0.0001726,2]
[328843423,1717866649922,-500.0,0.0001726,2]
[328843424,1717866649932,-500.0,0.0001726,2]
[328843425,1717866649943,-500.0,0.0001726,2]
[328843426,1717866649953,-500.0,0.0001726,2]
[328843427,1717866649964,-500.0,0.0001726,2]
[328843428,1717866649974,-500.0,0.0001726,2]
[328843429,1717866649984,-500.0,0.0001726,2]
[328843430,1717866649996,-500.0,0.0001726,2]
[328843431,1717866650006,-500.0,0.0001726,2]
[328843432,1717866650017,-500.0,0.0001726,2]
[328843433,1717866650027,-500.0,0.0001726,2]
[328843434,1717866650038,-1432.86,0.0001726,2]
[328843435,1717866650048,-563.37,0.0001726,2]
[328843436,1717866650060,-500.0,0.0001726,2]
[328843437,1717866650071,-500.0,0.0001726,2]
[328843438,1717866650081,-500.0,0.0001726,2]
[328843439,1717866650091,-500.0,0.0001726,2]
[328843440,1717866650102,-500.0,0.0001726,2]
[328843441,1717866650111,-500.0,0.0001726,2]
[328843442,1717866650121,-674.4,0.0001726,2]
[328843443,1717866650132,-500.0,0.0001726,2]
[328843444,1717866650141,-500.0,0.0001726,2]
[328843445,1717866650151,-500.0,0.0001726,2]
[328843446,1717866650160,-2374.81,0.0001726,2]
[328843447,1717866650171,-500.0,0.0001726,2]
[328843448,1717866650181,-500.0,0.0001726,2]
[328843449,1717866650191,-647.89,0.0001726,2]
[328843450,1717866650201,-500.0,0.0001726,2]
[328843451,1717866650210,-940.02,0.0001726,2]
[328843452,1717866650220,-500.0,0.0001726,2]
[328843453,1717866650231,-500.0,0.0001726,2]
[328843454,1717866650324,-500.0,0.0001726,2]
[328843455,1717866650344,-500.0,0.0001726,2]
[328843456,1717866650354,-500.0,0.0001726,2]
[328843457,1717866650363,-500.0,0.0001726,2]
[328843458,1717866650373,-13485.3,0.0001726,2]
[328843459,1717866650383,-500.0,0.0001726,2]
[328843460,1717866650393,-1610.87,0.0001726,2]
[328843461,1717866650403,-500.0,0.0001726,2]
[328843462,1717866650412,-710.78,0.0001726,2]
[328843463,1717866650422,-500.0,0.0001726,2]
[328843464,1717866650432,-500.0,0.0001726,2]
[328843465,1717866650443,-401.24453925,0.0001726,2]
[328843466,1717866650454,-500.0,0.0001726,2]
[328843467,1717866650468,-533.95,0.0001726,2]
[328843468,1717866650479,-575.69,0.0001726,2]
[328843469,1717866650488,-3055.69,0.0001726,2]
[328843470,1717866650499,-500.0,0.0001726,2]
[328843471,1717866650509,-500.0,0.0001726,2]
[328843472,1717866650519,-500.0,0.0001726,2]
[328843473,1717866650528,-500.0,0.0001726,2]
[328843474,1717866650538,-801.5,0.0001726,2]
[328843475,1717866650548,-700.03,0.0001726,2]
[328843476,1717866650559,-500.0,0.0001726,2]
[328843477,1717866650570,-651.7,0.0001726,2]
[328843478,1717866650580,-500.0,0.0001726,2]
[328843479,1717866650590,-1489.7,0.0001726,2]
[328843480,1717866650601,-1078.89,0.0001726,2]
[328843481,1717866650611,-500.0,0.0001726,2]
[328843482,1717866650621,-500.0,0.0001726,2]
[328843483,1717866650631,-601.79,0.0001726,2]
[328843484,1717866650642,-904.16,0.0001726,2]
[328843485,1717866650652,-577.48,0.0001726,2]
[328843486,1717866650663,-500.0,0.0001726,2]
[328843487,1717866650674,-500.0,0.0001726,2]
[328843488,1717866650684,-500.0,0.0001726,2]
[328843489,1717866650694,-1977.24,0.0001726,2]
[328843490,1717866650705,-500.0,0.0001726,2]
[328843491,1717866650715,-500.0,0.0001726,2]
[328843492,1717866650725,-500.0,0.0001726,2]
[328843493,1717866650735,-500.0,0.0001726,2]
[328843494,1717866650746,-500.0,0.0001726,2]
[328843495,1717866650756,-771.04,0.0001726,2]
[328843496,1717866650765,-638.88220007,0.00017292,2]
[328843497,1717866650775,-208.0,0.0001748,2]
[328843498,1717866650785,-557.13,0.00017532,2]
[328843499,1717866650795,-500.0,0.00017533,2]
[328843500,1717866650805,-276.16,0.00017533,2]
[328843501,1717866650815,-1018.09,0.00017533,2]
[328843502,1717866650826,-557.13,0.00017533,2]
[328843503,1717866650836,-500.0,0.00017534,2]
[328843504,1717866650846,-500.0,0.00017534,2]
[328843505,1717866650856,-606.57746634,0.00017534,2]
[328843506,1717866650866,-506.38,0.00017534,2]
[328843507,1717866650876,-500.0,0.00017534,2]
[328843508,1717866650886,-500.0,0.00017534,2]
[328843509,1717866650896,-230.44300335,0.00017534,2]
[328843510,1717866650907,-500.0,0.00017534,2]
[328843511,1717866650917,-500.0,0.00017534,2]
[328843512,1717866650927,-466.86439245,0.00017534,2]
[328843513,1717866650937,-500.0,0.00017534,2]
[328843514,1717866650947,-500.0,0.00017534,2]
[328843515,1717866650957,-304.24781902,0.00017534,2]
[328843516,1717866650967,-500.0,0.00017534,2]
[328843517,1717866650976,-500.0,0.00017534,2]
[328843518,1717866650986,-500.0,0.00017534,2]
[328843519,1717866650996,-500.0,0.00017534,2]
[328843520,1717866651005,-500.0,0.00017534,2]
[328843521,1717866651015,-500.0,0.00017534,2]
[328843522,1717866651025,-1432.86,0.00017534,2]
[328843523,1717866651034,-563.37,0.00017534,2]
[328843524,1717866651044,-638.30259759,0.00017534,2]
[328843525,1717866651053,-500.0,0.00017534,2]
[328843526,1717866651063,-500.0,0.00017534,2]
[328843527,1717866651075,-500.0,0.00017534,2]
[328843528,1717866651085,-500.0,0.00017534,2]
[328843529,1717866651095,-614.39233012,0.00017534,2]
[328843530,1717866651105,-674.4,0.00017534,2]
[328843531,1717866651115,-599.08803135,0.00017534,2]
[328843532,1717866651126,-500.0,0.00017534,2]
[328843533,1717866651136,-500.0,0.00017534,2]
[328843534,1717866651146,-2374.81,0.00017534,2]
[328843535,1717866651158,-500.0,0.00017534,2]
[328843536,1717866651169,-500.0,0.00017534,2]
[328843537,1717866651180,-647.89,0.00017534,2]
[328843538,1717866651190,-615.24657256,0.00017534,2]
[328843539,1717866651200,-940.02,0.00017534,2]
[328843540,1717866651210,-444.88664524,0.00017534,2]
[328843541,1717866651221,-352.42729182,0.00017534,2]
[328843542,1717866651231,-500.0,0.00017534,2]
[328843543,1717866651242,-500.0,0.00017534,2]
[328843544,1717866651253,-500.0,0.00017534,2]
[328843545,1717866651264,-500.0,0.00017534,2]
[328843546,1717866651274,-6102.16354285,0.00017534,2]
[328843547,1717866651290,-1165.647519,0.00017534,2]
[328843548,1717866651390,-1044.06506728,0.00017534,2]
[328843549,1717866651402,-3423.27762431,0.00017534,2]
[328843550,1717866651415,-1750.14624656,0.00017534,2]
[328843551,1717866651426,-323.30774697,0.00017534,2]
[328843552,1717866651436,-1610.87,0.00017534,2]
[328843553,1717866651446,-500.0,0.00017534,2]
[328843554,1717866651456,-710.78,0.00017534,2]
[328843555,1717866651471,-500.0,0.00017534,2]
[328843556,1717866651483,-402.14291596,0.00017534,2]
[328843557,1717866651493,-500.0,0.00017534,2]
[328843558,1717866651505,-533.95,0.00017534,2]
[328843559,1717866651515,-575.69,0.00017534,2]
[328843560,1717866651525,-3055.69,0.00017534,2]
[328843561,1717866651535,-500.0,0.00017534,2]
[328843562,1717866651546,-500.0,0.00017534,2]
[328843563,1717866651555,-500.0,0.00017534,2]
[328843564,1717866651564,-500.0,0.00017534,2]
[328843565,1717866651576,-297.09011122,0.00017534,2]
[328843566,1717866651588,-504.40988878,0.00017534,2]
[328843567,1717866651599,-700.03,0.00017534,2]
[328843568,1717866651609,-651.7,0.00017534,2]
[328843569,1717866651620,-1489.7,0.00017534,2]
[328843570,1717866651631,-1078.89,0.00017534,2]
[328843571,1717866651642,-500.0,0.00017534,2]
[328843572,1717866651652,-500.0,0.00017534,2]
[328843573,1717866651663,-601.79,0.00017534,2]
[328843574,1717866651673,-904.16,0.00017534,2]
[328843575,1717866651685,-577.48,0.00017534,2]
[328843577,1717866651697,-500.0,0.00017534,2]
[328843578,1717866651707,-500.0,0.00017534,2]
[328843579,1717866651718,-1977.24,0.00017534,2]
[328843580,1717866651728,-500.0,0.00017534,2]
[328843581,1717866651738,-500.0,0.00017534,2]
[328843582,1717866651748,-500.0,0.00017534,2]
[328843583,1717866651757,-300.1750061,0.00017534,2]
[328843584,1717866651768,-771.04,0.00017534,2]
[328843585,1717866651778,-307.265204,0.0001777,2]
[328843586,1717866651788,-1018.09,0.00017807,2]
[328843587,1717866651798,-535.11535632,0.00017807,2]
[328843588,1717866651811,-482.97464368,0.00017807,2]
[328843589,1717866651821,-557.13,0.00017807,2]
[328843590,1717866651830,-557.13,0.00017807,2]